[Event "GEO-AZE Women Match 2024"]
[Site "Tbilisi"]
[Date "2024.03.02"]
[Round "5.2"]
[White "Khotenashvili, Bella"]
[Black "Fataliyeva, Ulviyya"]
[Result "1-0"]
[ECO "A13"]
[WhiteElo "2467"]
[BlackElo "2384"]
[Annotator "RC"]
[PlyCount "151"]
[EventDate "2024.02.26"]
[EventType "team-tourn"]
[EventCountry "GEO"]
[SourceTitle "playchess.com"]
[Source "ChessBase"]
[SourceQuality "1"]
[WhiteTeam "Georgia"]
[BlackTeam "Azerbaijan"]
[WhiteTeamCountry "GEO"]
[BlackTeamCountry "AZE"]
[TimeControl "40/5400+30:1800+30"]

1. Nf3 {[%emt 0:00:01]} d5 {[%emt 0:00:07]} 2. c4 {[%emt 0:00:05]} e6 {[%emt 0:00:10]} 3. e3 {[%emt 0:00:11]} Nf6 {[%emt 0:00:13]} 4. b3 {[%emt 0:00:05]} Be7 {[%emt 0:00:19]} 5. Bb2 {[%emt 0:00:06]} O-O {[%emt 0:01:09]} 6. Nc3 {[%emt 0:00:22]} c5 {[%emt 0:01:21]} 7. cxd5 {[%emt 0:00:18]} exd5 {[%emt 0:00:19]} 8. d4 {[%emt 0:00:12]} Ne4 {[%emt 0:03:39]} 9. dxc5 {[%emt 0:09:56]} Bf6 {[%emt 0:03:45]} 10. Nd4 {[%emt 0:10:31]} Qa5 {[%emt 0:01:24]} 11. Rc1 {[%emt 0:04:43]} Nc6 {[%emt 0:03:52]} 12. Be2 {[%emt 0:15:53]} Nxc5 {[%emt 0:02:35]} 13. Nxc6 {[%emt 0:01:47]} bxc6 {[%emt 0:00:08]} 14. O-O {[%emt 0:00:29]} Ne4 {[%emt 0:00:04]} 15. Nxe4 {[%emt 0:04:17]} Bxb2 {[%emt 0:01:37]} 16. Rc2 {[%emt 0:00:10]} Qxa2 {[%emt 0:13:43]} 17. Nf6+ {[%emt 0:32:15]} gxf6 {[%emt 0:00:10]} 18. Qd2 {[%emt 0:00:02]} Qa3 {[%emt 0:11:35]} 19. Rxb2 {[%emt 0:00:24]} Qd6 {[%emt 0:00:17]} 20. Bf3 {[%emt 0:06:07]} f5 {[%emt 0:06:44]} 21. b4 {[%emt 0:03:01]} Be6 {[%emt 0:02:51]} 22. Rc1 {[%emt 0:03:45]} Rfb8 {[%emt 0:03:51]} 23. Rc5 {[%emt 0:03:07]} Rb6 {[%emt 0:00:36]} 24. Qc3 {[%emt 0:03:29]} Rab8 {[%emt 0:00:47]} 25. g3 {[%emt 0:00:46]} Bd7 {[%emt 0:01:28]} 26. h4 {[%emt 0:00:51]} f6 {[%emt 0:04:28]} 27. Kg2 {[%emt 0:00:28]} Kg7 {[%emt 0:01:40]} 28. Qd4 {[%emt 0:00:09]} Qe5 {[%emt 0:01:32]} 29. Qd2 {[%emt 0:00:02]} R8b7 {[%emt 0:00:21]} 30. Ra5 {[%emt 0:00:33]} Be6 {[%emt 0:03:40]} 31. Rba2 {[%emt 0:01:05]} Qb8 {[%emt 0:00:34]} 32. Qc1 {[%emt 0:00:43]} Qc7 {[%emt 0:06:27]} 33. Rc5 {[%emt 0:00:07]} Qd6 {[%emt 0:00:29]} 34. Ra4 {[%emt 0:00:05]} Bd7 {[%emt 0:00:27]} 35. Qc3 {[%emt 0:00:20]} Qb8 {[%emt 0:01:46]} 36. Rca5 {[%emt 0:01:06]} c5 {[%emt 0:02:03]} 37. bxc5 {[%emt 0:00:08]} Rb3 {[%emt 0:00:04]} 38. Qc2 {[%emt 0:00:21]} Rb2 {[%emt 0:00:38]} 39. Qd3 {[%emt 0:00:23]} Bxa4 {[%emt 0:03:55]} 40. Rxa4 {[%emt 0:00:00]} R7b4 {[%emt 0:00:00]} 41. Ra6 {[%emt 0:04:10]} Qe5 {[%emt 0:22:08]} 42. Rxa7+ {[%emt 0:11:26]} Rb7 {[%emt 0:00:13]} 43. Rxb7+ {[%emt 0:01:34]} Rxb7 {[%emt 0:00:06]} 44. c6 {[%emt 0:00:01]} Rb8 {[%emt 0:15:29]} 45. Qa6 {[%emt 0:04:16]} Qd6 {[%emt 0:05:33]} 46. h5 {[%emt 0:01:47]} Qc5 {[%emt 0:01:20]} 47. h6+ {[%emt 0:07:18]} Kg6 {[%emt 0:01:10]} 48. Qa4 {[%emt 0:00:30]} Rc8 {[%emt 0:05:50]} 49. Qh4 {[%emt 0:00:15]} Kf7 {[%emt 0:00:06]} 50. Qh5+ {[%emt 0:00:11]} Ke6 {[%emt 0:01:14]} 51. g4 {[%emt 0:00:07]} Qxc6 {[%emt 0:00:52]} 52. Qxf5+ {[%emt 0:00:09]} Kd6 {[%emt 0:00:02]} 53. Qxf6+ {[%emt 0:00:51]} Kc5 {[%emt 0:00:08]} 54. Qe7+ {[%emt 0:00:23]} Kb6 {[%emt 0:00:13]} 55. Qxh7 {[%emt 0:00:23]} Qf6 {[%emt 0:00:26]} 56. Bxd5 {[%emt 0:02:37]} Rf8 {[%emt 0:00:01]} 57. Qb7+ {[%emt 0:00:46]} Kc5 {[%emt 0:00:06]} 58. Bf3 {[%emt 0:02:16]} Qxh6 {[%emt 0:00:01]} 59. Qc7+ {[%emt 0:00:09]} Kb4 {[%emt 0:00:04]} 60. Qe7+ {[%emt 0:00:26]} Kb5 {[%emt 0:00:48]} 61. Qe5+ {[%emt 0:00:28]} Kb6 {[%emt 0:00:09]} 62. Bd5 {[%emt 0:01:05]} Rh8 {[%emt 0:00:35]} 63. Qe6+ {[%emt 0:00:46]} Qxe6 {[%emt 0:00:02]} 64. Bxe6 {[%emt 0:00:04]} Kc5 {[%emt 0:00:03]} 65. Kg3 {[%emt 0:00:30]} Kd6 {[%emt 0:00:04]} 66. Bf5 {[%emt 0:00:06]} Rh1 {[%emt 0:01:02]} 67. Kf4 {[%emt 0:00:17]} Rf1 {[%emt 0:00:09]} 68. f3 {[%emt 0:00:02]} Kd5 {[%emt 0:00:21]} 69. g5 {[%emt 0:00:17]} Kd6 {[%emt 0:00:03]} 70. e4 {[%emt 0:01:02]} Ke7 {[%emt 0:00:05]} 71. Bg4 {[%emt 0:00:11]} Ra1 {[%emt 0:00:05]} 72. e5 {[%emt 0:00:31]} Ra4+ {[%emt 0:00:17]} 73. Kf5 {[%emt 0:00:02]} Ra5 {[%emt 0:00:03]} 74. g6 {[%emt 0:00:30]} Rb5 {[%emt 0:00:04]} 75. f4 {[%emt 0:00:11]} Rb4 {[%emt 0:00:04]} 76. Kg5 {[%emt 0:00:11]} 1-0

[Event "GEO-AZE Women Match 2024"]
[Site "Tbilisi"]
[Date "2024.03.02"]
[Round "5.3"]
[White "Beydullayeva, Govhar"]
[Black "Arabidze, Meri"]
[Result "1/2-1/2"]
[ECO "D36"]
[WhiteElo "2374"]
[BlackElo "2466"]
[Annotator "TA"]
[PlyCount "84"]
[EventDate "2024.02.26"]
[EventType "team-tourn"]
[EventCountry "GEO"]
[SourceTitle "playchess.com"]
[Source "ChessBase"]
[SourceQuality "1"]
[WhiteTeam "Azerbaijan"]
[BlackTeam "Georgia"]
[WhiteTeamCountry "AZE"]
[BlackTeamCountry "GEO"]
[TimeControl "40/5400+30:1800+30"]

{[%evp 25,84,27,39,25,27,34,36,22,25,7,22,20,14,18,17,0,7,0,0,-6,-12,-11,0,-10,-5,-6,69,70,64,70,56,63,62,58,70,54,53,52,49,49,50,50,49,50,49,47,49,49,50,51,51,0,62,62,62,56,49,0,52,0,45]} 1. d4 {[%emt 0:00:02]} Nf6 {[%emt 0:00:08]} 2. c4 {[%emt 0:00:09]} e6 {[%emt 0:00:04]} 3. Nf3 {[%emt 0:00:02]} d5 {[%emt 0:00:04]} 4. Nc3 {[%emt 0:00:07]} Nbd7 {[%emt 0:00:06]} 5. cxd5 {[%emt 0:00:27]} exd5 {[%emt 0:00:06]} 6. Bg5 {[%emt 0:00:09]} h6 {[%emt 0:00:15]} 7. Bh4 {[%emt 0:00:18]} c6 {[%emt 0:00:25]} 8. e3 {[%emt 0:00:36]} Be7 {[%emt 0:00:28]} 9. Qc2 {[%emt 0:00:39]} O-O {[%emt 0:00:14]} 10. Bd3 {[%emt 0:00:24]} Re8 {[%emt 0:00:11]} 11. O-O {[%emt 0:00:54]} Ne4 {[%emt 0:00:31]} 12. Bxe4 {[%emt 0:00:32]} Bxh4 {[%emt 0:00:14]} 13. Bh7+ {[%emt 0:00:09]} Kh8 {[%emt 0:00:08]} 14. Nxh4 {[%emt 0:00:12]} Qxh4 {[%emt 0:00:11]} 15. Bd3 {[%emt 0:00:22]} Qe7 {[%emt 0:00:16]} 16. Rfe1 {[%emt 0:08:01] White is slightly better.} Nb6 {[%emt 0:02:29]} 17. Rad1 {[%emt 0:06:44]} Be6 {[%emt 0:01:16]} 18. h3 {[%emt 0:08:02]} Rad8 {[%emt 0:06:45]} 19. Ne2 {[%emt 0:09:57]} Nc8 {[%emt 0:04:06]} 20. b3 {[%emt 0:08:35]} Nd6 {[%emt 0:02:07]} 21. Ng3 {[%emt 0:02:12]} Bc8 {[%emt 0:12:23]} 22. f3 {[%emt 0:04:20]} Qg5 {[%emt 0:03:44][%csl LRe3,LRg3]} 23. Qf2 {[%emt 0:01:16]} h5 {[%emt 0:06:25][%cal Bh6h5,Bh5h4][%mdl 32]} 24. e4 {[%emt 0:10:10][%cal Be3e4,Be4e5][%mdl 32]} h4 {[%emt 0:12:22]} 25. Nf1 {[%emt 0:01:01]} Qf4 {[%emt 0:13:22]} (25... Bxh3 $2 {too greedy.} 26. e5 Nf5 27. Kh2 $18) (25... dxe4 $11 26. fxe4 Bxh3) 26. e5 $14 {[%emt 0:03:53]} Nf5 {[%emt 0:01:29]} 27. Bxf5 {[%emt 0:03:40]} Bxf5 {[%emt 0:00:06]} 28. Ne3 {[%emt 0:00:06]} Bh7 {[%emt 0:09:13]} 29. Ng4 {[%emt 0:01:52]} Qg5 {[%emt 0:00:30]} 30. Rf1 {[%emt 0:04:37] Black must now prevent f4.} Qh5 $1 {[%emt 0:00:15]} 31. f4 {[%emt 0:02:03] f5 is the strong threat.} Bf5 {[%emt 0:02:28]} 32. Nh2 {[%emt 0:04:57]} Re6 {[%emt 0:05:52]} 33. Nf3 {[%emt 0:01:49]} Rh6 {[%emt 0:00:02]} 34. Rfe1 {[%emt 0:04:38]} Kg8 {[%emt 0:05:48]} 35. Rc1 {[%emt 0:00:23]} Rf8 {[%emt 0:01:47]} 36. Re3 {[%emt 0:02:02]} Be4 {[%emt 0:02:32]} 37. Ng5 {[%emt 0:04:06]} Bf5 {[%emt 0:00:14]} 38. Nf3 {[%emt 0:01:00]} (38. b4 $14) 38... a6 {[%emt 0:03:25]} (38... Be4 $11) 39. b4 {[%emt 0:01:08]} Be4 {[%emt 0:00:37]} 40. Ng5 {[%emt 0:00:00] White is more active.} Bf5 {[%emt 0:00:00]} 41. Nf3 {[%emt 0:08:57]} Be4 {[%emt 0:12:18]} 42. Ng5 {[%emt 0:07:19]} Bf5 $1 {[%emt 0:00:17] Weighted Error Value: White=0.09 (flawless) /Black=0.08 (flawless) .  Mistake:       	White=1     	Black=2      OK:         	White=10    	Black=13     Best:        	White=1     	Black=2      Strong:       	---       	Black=2} 1/2-1/2

[Event "GEO-AZE Women Match 2024"]
[Site "Tbilisi"]
[Date "2024.03.02"]
[Round "5.4"]
[White "Batsiashvili, Nino"]
[Black "Mammadova, Gulnar"]
[Result "1/2-1/2"]
[ECO "D37"]
[WhiteElo "2451"]
[BlackElo "2351"]
[Annotator "RC"]
[PlyCount "46"]
[EventDate "2024.02.26"]
[EventType "team-tourn"]
[EventCountry "GEO"]
[SourceTitle "playchess.com"]
[Source "ChessBase"]
[SourceQuality "1"]
[WhiteTeam "Georgia"]
[BlackTeam "Azerbaijan"]
[WhiteTeamCountry "GEO"]
[BlackTeamCountry "AZE"]
[TimeControl "40/5400+30:1800+30"]

1. d4 {[%emt 0:00:03]} Nf6 {[%emt 0:00:09]} 2. c4 {[%emt 0:00:03]} e6 {[%emt 0:00:08]} 3. Nf3 {[%emt 0:00:03]} d5 {[%emt 0:00:10]} 4. Nc3 {[%emt 0:00:05]} Be7 {[%emt 0:00:08]} 5. Bf4 {[%emt 0:00:08]} O-O {[%emt 0:00:23]} 6. e3 {[%emt 0:00:04]} Nbd7 {[%emt 0:00:16]} 7. c5 {[%emt 0:00:11]} Nh5 {[%emt 0:00:14]} 8. Bd3 {[%emt 0:00:07]} Nxf4 {[%emt 0:00:08]} 9. exf4 {[%emt 0:00:04]} b6 {[%emt 0:00:09]} 10. b4 {[%emt 0:00:15]} a5 {[%emt 0:00:08]} 11. a3 {[%emt 0:00:06]} c6 {[%emt 0:00:06]} 12. O-O {[%emt 0:00:18]} Ba6 {[%emt 0:00:10]} 13. Bxa6 {[%emt 0:00:08]} Rxa6 {[%emt 0:00:05]} 14. Qe2 {[%emt 0:00:06]} Qa8 {[%emt 0:00:33]} 15. b5 {[%emt 0:00:27]} cxb5 {[%emt 0:00:15]} 16. Qxb5 {[%emt 0:00:04]} Ra7 {[%emt 0:00:32]} 17. c6 {[%emt 0:00:44]} Nb8 {[%emt 0:00:32]} 18. Rfc1 {[%emt 0:01:02]} Rc7 {[%emt 0:00:45]} 19. Ne5 {[%emt 0:06:33]} Bd6 {[%emt 0:00:26]} 20. Qxb6 {[%emt 0:03:38]} Bxe5 {[%emt 0:03:16]} 21. dxe5 {[%emt 0:00:04]} Rxc6 {[%emt 0:01:09]} 22. Qe3 {[%emt 0:03:17]} Nd7 {[%emt 0:08:52]} 23. Nb5 {[%emt 0:04:45]} Nb6 {[%emt 0:09:14]} 1/2-1/2

[Event "GEO-AZE Women Match 2024"]
[Site "Tbilisi"]
[Date "2024.03.02"]
[Round "5.5"]
[White "Balajayeva, Khanim"]
[Black "Javakhishvili, Lela"]
[Result "1/2-1/2"]
[ECO "C65"]
[WhiteElo "2350"]
[BlackElo "2433"]
[Annotator "TA"]
[PlyCount "99"]
[EventDate "2024.02.26"]
[EventType "team-tourn"]
[EventCountry "GEO"]
[SourceTitle "playchess.com"]
[Source "ChessBase"]
[SourceQuality "1"]
[WhiteTeam "Azerbaijan"]
[BlackTeam "Georgia"]
[WhiteTeamCountry "AZE"]
[BlackTeamCountry "GEO"]
[TimeControl "40/5400+30:1800+30"]

{[%evp 29,99,-27,-21,-17,0,0,-9,-41,-20,-53,-70,-72,-58,-126,-96,-96,-101,-77,-68,-102,-88,-105,-98,-91,-75,-90,-58,-92,-93,-125,-104,-124,-124,-216,-212,-207,-133,-128,-141,-147,-139,-154,-115,-159,-57,-76,-67,-67,-35,-114,-133,-128,-87,-115,-112,-171,0,0,0,0,0,0,0,0,0,0,0,0,0,0,0,0]} 1. e4 {[%emt 0:00:04]} e5 {[%emt 0:00:10]} 2. Nf3 {[%emt 0:00:04]} Nc6 {[%emt 0:00:04]} 3. Bb5 {[%emt 0:00:07]} Nf6 {[%emt 0:00:14]} 4. d3 {[%emt 0:00:11]} Bc5 {[%emt 0:00:09]} 5. c3 {[%emt 0:00:08]} O-O {[%emt 0:00:17]} 6. Bg5 {[%emt 0:00:19] C65: Ruy Lopez: Berlin Defence (3...Nf6), unusual lines and 4 0-0 Bc5.} Re8 {[%emt 0:07:39]} 7. Nbd2 {[%emt 0:01:46]} Bf8 $146 {[%emt 0:00:46]} ({Predecessor:} 7... a6 8. Ba4 b5 9. Bb3 h6 10. Bh4 Be7 11. O-O d6 12. Bg3 Bf8 13. d4 Bg4 14. h3 Bh5 15. Qc2 exd4 16. cxd4 Nb4 17. Qc3 c5 18. Rfe1 c4 19. Qxc4 bxc4 {0-1 Shirov,A (2662)-Aleksandrov,A (2563) Gipslis Memorial Blitz 2021 (8)}) 8. h3 {[%emt 0:03:47]} a6 {[%emt 0:03:19]} 9. Ba4 {[%emt 0:00:28]} d6 {[%emt 0:03:21]} 10. O-O {[%emt 0:00:34]} h6 {[%emt 0:00:28]} 11. Be3 {[%emt 0:01:25]} d5 {[%emt 0:03:36]} 12. Bxc6 {[%emt 0:02:58]} bxc6 {[%emt 0:00:14]} 13. Re1 {[%emt 0:00:58]} a5 {[%emt 0:08:25]} 14. Qc2 {[%emt 0:03:34]} Nh7 {[%emt 0:07:01]} 15. Rad1 {[%emt 0:12:38]} f5 {[%emt 0:01:04]} 16. Nf1 {[%emt 0:01:38]} Nf6 {[%emt 0:11:44]} 17. Bc1 {[%emt 0:08:17]} Bd6 {[%emt 0:01:33]} (17... dxe4 $6 18. dxe4 Bd6 19. exf5 $16) 18. N1d2 {[%emt 0:21:23]} a4 {[%emt 0:07:18]} 19. c4 {[%emt 0:01:39]} fxe4 $1 {[%emt 0:03:43]} 20. dxe4 {[%emt 0:00:23]} d4 {[%emt 0:02:36]} 21. Nh4 {[%emt 0:01:42]} (21. c5 $15 Bf8 22. Nc4) 21... c5 {[%emt 0:04:50]} 22. Nf1 {[%emt 0:07:54]} Nh7 {[%emt 0:04:01]} 23. Nf5 {[%emt 0:00:47]} Bf8 {[%emt 0:00:05]} 24. N1g3 {[%emt 0:01:33]} Ra6 {[%emt 0:02:02]} 25. Rd3 {[%emt 0:04:21]} g6 {[%emt 0:02:03]} 26. Ne3 {[%emt 0:00:07]} (26. Nxh6+ $2 Bxh6 27. Bxh6 g5 $19) 26... Bd7 {[%emt 0:02:10]} 27. Nef1 {[%emt 0:00:22]} Ng5 {[%emt 0:04:41]} 28. Nh2 {[%emt 0:02:53]} Nf7 {[%emt 0:00:35]} 29. Rf3 {[%emt 0:04:12]} Be6 {[%emt 0:01:26]} 30. Ng4 {[%emt 0:02:22]} Bg7 {[%emt 0:01:11]} 31. Rd1 {[%emt 0:07:29]} (31. Nf1 $17 {was necessary.}) 31... h5 $19 {[%emt 0:00:58]} 32. Nh2 {[%emt 0:01:28]} Qa8 {[%emt 0:02:42]} 33. Ngf1 {[%emt 0:01:07]} Nd6 {[%emt 0:01:16]} 34. Nd2 {[%emt 0:00:18]} Bh6 {[%emt 0:02:15]} 35. Nhf1 {[%emt 0:03:15]} Kh7 {[%emt 0:04:01]} 36. Re1 {[%emt 0:00:15]} Rb6 {[%emt 0:03:06]} (36... Qb7 $17 37. Qd1 Bg7 (37... Nxc4 $2 38. Nxc4 Bxc4 39. Bxh6 $18)) 37. Ra3 $1 $15 {[%emt 0:02:42]} Rb4 {[%emt 0:01:47]} 38. b3 {[%emt 0:00:05]} Rf8 {[%emt 0:02:35]} 39. Nf3 {[%emt 0:00:41]} (39. Qd3 $15) 39... Bxc1 {[%emt 0:02:07]} 40. Qxc1 {[%emt 0:00:00]} Rxf3 $1 {[%emt 0:00:00]} (40... Nxe4 $2 41. Rxe4 Re8 42. Rxe5 $18) 41. gxf3 {[%emt 0:00:10] [#]} Qd8 $1 {[%emt 0:04:16]} (41... Bxh3 42. Qg5 $16) 42. f4 {[%emt 0:06:38] [#]} (42. bxa4 Qh4 (42... Bxh3 43. f4 $15) (42... Rxc4 $2 43. Qd2 $19) (42... Nxc4 $2 43. Rb3 $19) (42... Bxc4 43. f4 $16) 43. f4 exf4 $17 (43... Bxh3 44. fxe5 Nf7 45. Rg3 $19) (43... Rxc4 44. Qd2 $17)) (42. Rxa4 $17 Nf7 43. Ra7 (43. Rxb4 cxb4 44. Nh2 Qh4 $15)) 42... Qh4 $2 {[%emt 0:03:41]} ({Black should play} 42... axb3 $1 $19 43. axb3 Bxh3) 43. f5 $1 $11 {[%emt 0:03:48]} gxf5 {[%emt 0:07:25]} 44. exf5 {[%emt 0:00:23]} Rb8 $1 {[%emt 0:03:30]} ({But not} 44... Bxf5 $6 45. Rxe5 Rb8 46. Ng3 $16 (46. bxa4 $2 {is the wrong capture.} Rb1 $19)) ({Not} 44... Ne4 $2 45. Rxe4 (45. fxe6 Qxf2+ 46. Kh1 Ng3+ 47. Nxg3 Qf3+ 48. Kg1 Qxg3+ 49. Kf1 Qf3+ 50. Kg1 Rb8 $11) 45... Qxe4 46. fxe6 $18) 45. fxe6 {[%emt 0:07:46]} Rg8+ $1 {[%emt 0:00:26]} 46. Ng3 {[%emt 0:00:03]} Rxg3+ {[%emt 0:01:08]} 47. fxg3 {[%emt 0:00:02]} Qxg3+ {[%emt 0:00:06]} 48. Kf1 {[%emt 0:00:29]} Qf3+ $1 {[%emt 0:00:16]} 49. Kg1 {[%emt 0:00:02]} Qg3+ {[%emt 0:00:13]} 50. Kf1 {[%emt 0:00:03]} 1/2-1/2